bitfinex/quotes_BTCUSD_20241022
["timestamp","ask_amount","ask_price","bid_price","bid_amount"]
[1729602858815,0.00165,67004.0,67003.0,0.49870615]
[1729602859302,0.00165,67004.0,67003.0,0.51270615]
[1729602859508,0.00165,67004.0,67003.0,0.49870615]
[1729602859929,0.00165,67004.0,67003.0,0.49070615]
[1729602860371,0.00165,67004.0,67003.0,0.50470615]
[1729602860831,0.00165,67004.0,67003.0,0.50270615]
[1729602861283,0.00165,67004.0,67003.0,0.51370615]
[1729602865388,0.00165,67004.0,67003.0,1.06370615]
[1729602866217,0.00165,67004.0,67003.0,1.06453115]
[1729602869945,0.26043586,67004.0,67003.0,0.17278415]
[1729602870155,0.31647469,67004.0,67003.0,0.17278415]
[1729602870375,0.26043586,67004.0,67003.0,0.17278415]
[1729602872635,0.150894,67004.0,67003.0,0.17278415]
[1729602873173,0.00165,67004.0,67003.0,0.17278415]
[1729602874195,0.150894,67004.0,67003.0,0.17278415]
[1729602874774,0.00165,67004.0,67003.0,0.17278415]
[1729602875608,0.150894,67004.0,67003.0,0.17278415]
[1729602877193,0.00165,67004.0,67003.0,0.17278415]
[1729602886037,0.00165,67004.0,67003.0,0.32203115]
[1729602886249,0.00165,67004.0,67003.0,0.17278415]
[1729602888446,0.00165,67004.0,67003.0,0.32203115]
[1729602888689,0.00165,67004.0,67003.0,0.33303115]
[1729602888920,0.00165,67004.0,67003.0,0.36864844]
[1729602889160,0.00165,67004.0,67003.0,0.37664844]
[1729602889394,0.00165,67004.0,67003.0,0.36564844]
[1729602889875,0.00165,67004.0,67003.0,0.33803115]
[1729602896860,0.00165,67004.0,67003.0,0.18878415]
[1729602897313,0.00165,67004.0,67003.0,0.16578415]
[1729602897923,0.150894,67004.0,67003.0,0.16578415]
[1729602898166,0.00165,67004.0,67003.0,0.16578415]
[1729602899947,0.150894,67004.0,67003.0,0.16578415]
[1729602900145,0.00165,67004.0,67003.0,0.16578415]
[1729602900351,0.150894,67004.0,67003.0,0.16578415]
[1729602900558,0.00165,67004.0,67003.0,0.16578415]
[1729602901217,0.150894,67004.0,67003.0,0.16578415]
[1729602902472,0.68109332,67004.0,67003.0,0.016825]
[1729602902679,5.40532435,67004.0,67003.0,0.016825]
[1729602902891,0.43989686,66999.0,66998.0,0.02336008]
[1729602903096,0.43989686,66999.0,66992.0,0.2237587]
[1729602903097,0.149269,66993.0,66992.0,0.2237587]
[1729602903304,0.50553189,66993.0,66992.0,0.2237587]
[1729602903711,0.50553189,66993.0,66991.0,0.000825]
[1729602903712,0.149271,66992.0,66991.0,0.000825]
[1729602903922,0.40238382,66992.0,66991.0,0.14978415]
[1729602904597,0.2159202,66992.0,66991.0,0.14978415]
[1729602905274,0.2159202,66992.0,66991.0,0.15478415]
[1729602905789,0.34459734,66992.0,66991.0,0.15478415]
[1729602906216,0.4419483,66992.0,66991.0,0.15878415]
[1729602906452,0.53084009,66992.0,66991.0,0.15878415]
[1729602906662,0.27794814,66992.0,66991.0,0.15878415]
[1729602907730,0.32235272,66992.0,66991.0,0.15878415]
[1729602907961,0.32235208,66992.0,66991.0,0.15878415]
[1729602909805,0.27794814,66992.0,66991.0,0.15878415]
[1729602912774,0.27794814,66992.0,66991.0,0.15878415]
[1729602913211,0.47869,66992.0,66991.0,0.009825]
[1729602913430,5.14828,66992.0,66991.0,0.009825]
[1729602913704,5.25782186,66992.0,66991.0,0.009825]
[1729602913946,5.35782186,66992.0,66991.0,0.009825]
[1729602914168,5.24828,66992.0,66991.0,0.009825]
[1729602914384,2.44901286,66992.0,66991.0,0.005825]
[1729602914586,0.98101286,66992.0,66991.0,0.000825]
[1729602914834,0.98601286,66992.0,66991.0,0.001825]
[1729602915015,0.99201286,66992.0,66991.0,0.002825]
[1729602915223,0.98101286,66992.0,66991.0,0.000825]
[1729602915426,1.12997201,66992.0,66991.0,0.000825]
[1729602915626,1.14097201,66992.0,66991.0,0.002825]
[1729602915825,1.13497201,66992.0,66991.0,0.001825]
[1729602916053,1.12997201,66992.0,66991.0,0.000825]
[1729602916567,1.12997201,66992.0,66991.0,0.001825]
[1729602916568,1.13597201,66992.0,66991.0,0.001825]
[1729602917535,1.14097201,66992.0,66991.0,0.002825]
[1729602917952,0.005,66987.0,66982.0,0.00365]
[1729602918159,0.53374186,66992.0,66986.0,0.2237587]
[1729602918160,0.298557,66989.0,66986.0,0.2237587]
[1729602918384,0.011,66992.0,66989.0,0.149276]
[1729602918589,0.011,66992.0,66991.0,0.1692]
[1729602918799,0.149258,66998.0,66991.0,0.46743215]
[1729602919005,0.29852,66997.0,66992.0,0.14895915]
[1729602919213,0.149269,66993.0,66992.0,0.14895915]
[1729602920208,0.149266,66995.0,66992.0,0.14895915]
[1729602920420,0.149266,66995.0,66991.0,0.0922]
[1729602920421,0.298487,67005.0,66995.0,0.321529]
[1729602920628,0.00147039,67009.0,66999.0,0.37831]
[1729602920839,0.00147039,67009.0,67001.0,0.023]
[1729602921049,0.149241,67006.0,67002.0,0.14895915]
[1729602921285,0.298475,67008.0,67002.0,0.14895915]
[1729602921286,0.149247,67003.0,67002.0,0.14895915]
[1729602922145,0.150895,67004.0,67002.0,0.14895915]
[1729602922354,0.00165,67004.0,67002.0,0.15095915]
[1729602922586,0.00265,67004.0,67002.0,0.15695915]
[1729602922790,0.150895,67004.0,67002.0,0.14895915]
[1729602923209,0.00165,67004.0,67002.0,0.14895915]
[1729602923409,0.003,67003.0,67002.0,0.14895915]
[1729602923587,0.006,67003.0,67002.0,0.14895915]
[1729602923820,0.155247,67003.0,67002.0,0.14895915]
[1729602924005,0.155247,67003.0,67002.0,0.14978415]
[1729602924760,0.152247,67003.0,67002.0,0.14978415]
[1729602924991,0.149247,67003.0,67002.0,0.14978415]
[1729602926139,0.152247,67003.0,67002.0,0.14978415]
[1729602926358,0.155247,67003.0,67002.0,0.14978415]
[1729602927656,0.24776086,67003.0,67002.0,0.000825]
[1729602928076,0.42603444,67003.0,67002.0,0.000825]
[1729602928318,5.18972444,67003.0,67002.0,0.000825]
[1729602928535,5.18772444,67003.0,67002.0,0.000825]
[1729602928759,5.18972444,67003.0,67002.0,0.000825]
[1729602929241,5.18672444,67003.0,67002.0,0.000825]
[1729602929439,5.18672444,67003.0,66994.0,0.2237587]
[1729602929440,0.164264,66995.0,66994.0,0.2237587]
[1729602929653,5.01112758,66995.0,66994.0,0.2237587]
[1729602929863,5.18722758,66995.0,66994.0,0.2237587]
[1729602930120,0.164271,66992.0,66991.0,0.005]
[1729602930346,4.83237486,66992.0,66991.0,0.005]
[1729602930755,4.522271,66992.0,66991.0,0.005]
[1729602930905,0.164271,66992.0,66991.0,0.005]
[1729602931587,0.159271,66992.0,66991.0,0.005]
[1729602931943,0.154271,66992.0,66991.0,0.005]
[1729602932138,0.154271,66992.0,66991.0,0.15395915]
[1729602932824,0.162271,66992.0,66991.0,0.15395915]
[1729602933186,0.29518536,66992.0,66991.0,0.15395915]
[1729602934948,0.162271,66992.0,66991.0,0.15395915]
[1729602936174,0.163923,66992.0,66991.0,0.15395915]
[1729602938401,0.163923,66992.0,66991.0,0.005]
[1729602938402,0.34019658,66992.0,66991.0,0.005]
[1729602938611,0.34519658,66992.0,66991.0,0.005]
[1729602938804,0.34719658,66992.0,66991.0,0.005]
[1729602939009,0.48011199,66992.0,66991.0,0.005]
[1729602941095,0.47011199,66992.0,66991.0,0.005]
[1729602941299,0.48011199,66992.0,66991.0,0.005]
[1729602941504,0.58211199,66992.0,66991.0,0.005]
[1729602941723,5.15770199,66992.0,66991.0,0.005]
[1729602942486,5.23250199,66992.0,66991.0,0.005]
[1729602942897,1.12499658,66992.0,66991.0,0.005]
[1729602943103,1.03499658,66992.0,66991.0,0.005]
[1729602943556,0.91999658,66992.0,66991.0,0.005]
[1729602944511,0.73899658,66992.0,66991.0,0.005]
[1729602944743,0.73399658,66992.0,66991.0,0.005]
[1729602945422,0.88795573,66992.0,66991.0,0.005]
[1729602945898,0.74399658,66992.0,66991.0,0.005]
[1729602947549,0.67419658,66992.0,66991.0,0.005]
[1729602948361,0.66919658,66992.0,66991.0,0.005825]
[1729602948560,0.64019658,66992.0,66991.0,0.005825]
[1729602948760,0.43519658,66992.0,66991.0,0.005825]
[1729602949164,0.56891199,66992.0,66991.0,0.005825]
[1729602954673,0.43519658,66992.0,66991.0,0.005825]
[1729602960894,0.43519658,66992.0,66991.0,0.15478415]
[1729602960895,0.158923,66992.0,66991.0,0.15478415]
[1729602961099,0.009652,66992.0,66991.0,0.17778415]
[1729602961300,0.009652,66992.0,66991.0,0.7557476]
[1729602961474,0.009652,66992.0,66991.0,0.7527623]
[1729602961687,0.009652,66992.0,66991.0,0.80618425]
[1729602962150,0.005652,66992.0,66991.0,0.81182401]
[1729602962376,0.006652,66992.0,66991.0,0.82582401]
[1729602962587,0.002652,66992.0,66991.0,0.82582401]
[1729602963052,0.002652,66992.0,66991.0,0.82882401]
[1729602963216,0.001652,66992.0,66991.0,0.76819653]
[1729602963563,0.002652,66992.0,66991.0,1.33919653]
[1729602963979,0.003652,66992.0,66991.0,1.35319653]
[1729602965066,0.003652,66992.0,66991.0,0.79319653]
[1729602966605,0.003652,66992.0,66991.0,1.09519138]
[1729602966822,0.003652,66992.0,66991.0,1.06878725]
[1729602967485,0.003652,66992.0,66991.0,1.0721648]
[1729602967695,0.003652,66992.0,66991.0,0.5121648]
[1729602968741,0.003652,66992.0,66991.0,0.5351648]
[1729602970861,0.003652,66992.0,66991.0,0.68412395]
[1729602971081,0.003652,66992.0,66991.0,0.5351648]
[1729602974055,0.003652,66992.0,66991.0,0.70643838]
[1729602974260,0.003652,66992.0,66991.0,0.71143838]
[1729602974462,0.003652,66992.0,66991.0,0.72143838]
[1729602974673,0.003652,66992.0,66991.0,1.28143838]
[1729602974876,0.003652,66992.0,66991.0,1.53039753]
[1729602975283,0.003652,66992.0,66991.0,1.53239753]
[1729602976162,0.003652,66992.0,66991.0,1.53039753]
[1729602979182,0.003652,66992.0,66991.0,1.53239753]
[1729602983084,0.003652,66992.0,66991.0,1.86709753]
[1729602984788,0.003652,66992.0,66991.0,2.03837111]
[1729602984986,0.00165,67002.0,67001.0,0.464951]
[1729602985218,0.00165,67002.0,67001.0,1.17395929]
[1729602986955,0.2254487,67021.0,67015.0,0.005]
[1729602986956,0.00169,67021.0,67015.0,0.005]
[1729602987173,0.00169,67021.0,67020.0,0.258709]
[1729602987402,0.00169,67021.0,67020.0,0.61756815]
[1729602987611,0.00169,67021.0,67020.0,0.71585827]
[1729602988245,0.00169,67021.0,67020.0,0.88713185]
[1729602988670,0.00169,67021.0,67020.0,0.91713185]
[1729602988851,0.00169,67021.0,67020.0,0.91913185]
[1729602989712,0.00169,67021.0,67020.0,0.93313185]
[1729602990130,0.00169,67021.0,67020.0,0.94713185]
[1729602990337,0.00169,67021.0,67020.0,0.94513185]
[1729602990593,0.001692,67041.0,67020.0,0.94513185]
[1729602990594,0.001692,67041.0,67039.0,0.154166]
[1729602990806,0.001692,67041.0,67039.0,0.17195915]
[1729602991026,0.32208958,67040.0,67039.0,0.14895915]
[1729602991485,0.40458958,67040.0,67039.0,0.14895915]
[1729602991934,0.57586316,67040.0,67039.0,0.16195915]
[1729602992205,0.40458958,67040.0,67039.0,0.16195915]
[1729602992676,0.40458958,67040.0,67039.0,0.16295915]
[1729602992909,0.57586316,67040.0,67039.0,0.16195915]
[1729602993222,0.57586316,67040.0,67039.0,0.14995915]
[1729602993460,0.001652,67040.0,67039.0,0.18937883]
[1729602993695,0.001652,67040.0,67039.0,0.34054483]
[1729602994111,0.001652,67040.0,67039.0,0.33854483]
[1729602994522,0.001652,67040.0,67039.0,0.33754483]
[1729602994939,0.001652,67040.0,67039.0,0.34854483]
[1729602995375,0.001652,67040.0,67039.0,0.33754483]
[1729602995759,0.001652,67040.0,67039.0,0.34454483]
[1729602996412,0.001652,67040.0,67039.0,0.35354483]
[1729602996944,0.001652,67040.0,67039.0,0.34454483]
[1729602997381,0.001652,67040.0,67039.0,0.35054483]
[1729602997968,0.001652,67040.0,67039.0,0.34454483]
[1729602998432,0.001652,67040.0,67039.0,0.34854483]
[1729602998612,0.001652,67040.0,67039.0,0.35454483]
[1729602998865,0.001652,67040.0,67039.0,0.34854483]
[1729602999284,0.001652,67040.0,67039.0,0.36054483]
[1729602999506,0.001652,67040.0,67039.0,0.34854483]
[1729602999972,0.001652,67040.0,67039.0,0.35854483]
[1729603000212,0.001652,67040.0,67039.0,0.35254483]
[1729603000423,0.001652,67040.0,67039.0,0.35954483]
[1729603000929,0.001652,67040.0,67039.0,0.35254483]
[1729603001375,0.001652,67040.0,67039.0,0.35354483]
[1729603001828,0.001652,67040.0,67039.0,0.36554483]
[1729603002055,3.4e-05,67050.0,67049.0,0.149144]
[1729603002269,3.4e-05,67050.0,67049.0,0.36584825]
[1729603003856,3.4e-05,67050.0,67049.0,0.37184825]
[1729603004713,3.4e-05,67050.0,67049.0,0.37784825]
[1729603005886,0.17130758,67050.0,67049.0,0.37784825]
[1729603006078,0.17130758,67050.0,67049.0,0.18395915]
[1729603006294,0.17130758,67050.0,67049.0,0.33310315]
[1729603006515,0.17130758,67050.0,67049.0,0.33534027]
[1729603007088,0.17130758,67050.0,67049.0,0.32934027]
[1729603007488,0.17130758,67050.0,67049.0,0.33134027]
[1729603007690,0.17130758,67050.0,67049.0,0.32534027]
[1729603007891,3.4e-05,67050.0,67049.0,0.32534027]
[1729603008091,3.4e-05,67050.0,67049.0,0.17719627]
[1729603008545,3.4e-05,67050.0,67049.0,0.32634027]
[1729603008811,3.4e-05,67050.0,67049.0,0.4186342]
[1729603009338,3.4e-05,67050.0,67049.0,0.4176342]
[1729603009612,3.4e-05,67050.0,67049.0,0.4156342]
[1729603010038,3.4e-05,67050.0,67049.0,0.4166342]
[1729603010638,3.4e-05,67050.0,67049.0,0.4156342]
[1729603010839,3.4e-05,67050.0,67049.0,0.4196342]
[1729603011312,3.4e-05,67050.0,67049.0,0.32734027]
[1729603011851,3.4e-05,67050.0,67049.0,0.33034027]
[1729603016220,3.4e-05,67050.0,67049.0,0.73037255]
[1729603016444,3.4e-05,67050.0,67049.0,0.50661385]
[1729603016876,3.4e-05,67050.0,67049.0,0.58551385]
[1729603017093,3.4e-05,67050.0,67049.0,0.730473]
[1729603017521,3.4e-05,67050.0,67049.0,0.744473]
[1729603017758,3.4e-05,67050.0,67049.0,0.741473]
[1729603017968,3.4e-05,67050.0,67049.0,1.111473]
[1729603018194,3.4e-05,67050.0,67049.0,1.125473]
[1729603018378,3.4e-05,67050.0,67049.0,1.111473]
[1729603019255,3.4e-05,67050.0,67049.0,0.94184942]
[1729603019475,3.4e-05,67050.0,67049.0,0.95584942]
[1729603020121,3.4e-05,67050.0,67049.0,0.72075315]
[1729603020581,3.4e-05,67050.0,67049.0,1.12078543]
[1729603020798,3.4e-05,67050.0,67049.0,0.89702673]
[1729603022348,3.4e-05,67050.0,67049.0,0.94351117]
[1729603023881,3.4e-05,67050.0,67049.0,1.23001117]
[1729603024121,3.4e-05,67050.0,67049.0,1.59704368]
[1729603024346,3.4e-05,67050.0,67049.0,1.37897032]
[1729603024796,3.4e-05,67050.0,67049.0,1.4277701]
[1729603025257,3.4e-05,67050.0,67049.0,1.4137701]
[1729603025473,3.4e-05,67050.0,67049.0,1.59904368]
[1729603025698,0.00169,67058.0,67049.0,1.59904368]
[1729603025699,0.00169,67058.0,67057.0,0.70277316]
[1729603025925,0.00169,67058.0,67057.0,1.47780739]
[1729603026140,0.00169,67058.0,67057.0,1.52460717]
[1729603026348,0.00169,67058.0,67057.0,1.35333359]
[1729603026664,0.00169,67058.0,67057.0,1.47780739]
[1729603027121,0.00169,67058.0,67057.0,1.70156609]
[1729603027345,0.00169,67089.0,67081.0,0.005]
[1729603027573,0.00169,67089.0,67088.0,0.32533058]
[1729603027795,0.00169,67089.0,67088.0,0.34833058]
[1729603028026,0.08089,67108.0,67105.0,0.14902]
[1729603028251,0.08089,67108.0,67105.0,0.17425509]
[1729603028476,0.08089,67108.0,67107.0,0.172015]
[1729603028724,0.00169,67108.0,67107.0,0.32097415]
[1729603029166,0.00169,67108.0,67107.0,0.17195915]
[1729603029414,0.00169,67108.0,67107.0,0.17419414]
[1729603029623,0.00169,67108.0,67107.0,0.14895915]
[1729603029624,0.32197658,67108.0,67107.0,0.14895915]
[1729603030271,0.40087658,67108.0,67107.0,0.16495915]
[1729603030930,0.40087658,67108.0,67107.0,0.15695915]
[1729603031167,0.229603,67108.0,67107.0,0.15919405]
[1729603031383,0.08059,67108.0,67107.0,0.15919405]
[1729603031594,0.229603,67108.0,67107.0,0.14895915]
[1729603031812,0.229603,67108.0,67107.0,0.15295915]
[1729603032238,0.229603,67108.0,67107.0,0.14895915]
[1729603032842,0.229603,67108.0,67107.0,0.15395915]
[1729603033291,0.229603,67108.0,67107.0,0.14895915]
[1729603034328,0.229603,67108.0,67107.0,0.1511943]
[1729603034549,0.239603,67108.0,67107.0,0.00223515]
[1729603034757,4.912893,67108.0,67107.0,0.00223515]
[1729603035228,5.07916658,67108.0,67107.0,0.00223515]
[1729603035453,5.08416658,67108.0,67107.0,0.00223515]
[1729603035663,4.86257658,67108.0,67107.0,0.00223515]
[1729603035872,4.84357658,67108.0,67107.0,0.00223515]
[1729603036099,0.46929,67108.0,67107.0,0.1511943]
[1729603036330,0.234603,67108.0,67107.0,0.1511943]
[1729603038488,0.00169,67108.0,67107.0,0.33792813]
[1729603038930,0.17296358,67108.0,67107.0,0.1511943]
[1729603039135,0.17278408,67108.0,67107.0,0.1511943]
[1729603039530,0.17278408,67108.0,67107.0,0.15342934]
[1729603039730,0.32179708,67108.0,67107.0,0.1511943]
[1729603039964,0.0015105,67108.0,67107.0,0.27191373]
[1729603040226,0.0016475,67108.0,67107.0,0.42890853]
[1729603040423,0.0016475,67108.0,67107.0,0.43092873]
[1729603040609,0.0016475,67108.0,67107.0,0.47697495]
[1729603040769,0.0016475,67108.0,67107.0,0.42592873]
[1729603040974,0.0016475,67108.0,67107.0,0.42792873]
[1729603042215,0.0016475,67108.0,67107.0,0.42892873]
[1729603042679,0.0016475,67108.0,67107.0,0.43992873]
[1729603043022,0.0016475,67108.0,67107.0,0.49097495]
[1729603043221,0.0016475,67108.0,67107.0,0.82473365]
[1729603043448,0.0016475,67108.0,67107.0,0.56392873]
[1729603043655,0.0016475,67108.0,67107.0,0.55392873]
[1729603043865,0.0016475,67108.0,67107.0,0.56392873]
[1729603044038,0.0016475,67108.0,67107.0,0.60497495]
[1729603044438,0.0016475,67108.0,67107.0,0.53992873]
[1729603045053,0.0016475,67108.0,67107.0,0.4282093]
[1729603045259,0.0016475,67108.0,67107.0,0.4232093]
[1729603045520,0.0016475,67108.0,67107.0,0.3372093]
[1729603045724,0.0016475,67108.0,67107.0,0.3232093]
[1729603046119,0.0016475,67108.0,67107.0,0.3372093]
[1729603046321,0.0016475,67108.0,67107.0,0.47216845]
[1729603046720,0.0016475,67108.0,67107.0,0.67644203]
[1729603047130,0.0016475,67108.0,67107.0,0.66244203]
[1729603047537,0.0016475,67108.0,67107.0,0.67644203]
[1729603048435,0.0016475,67108.0,67107.0,0.3512093]
[1729603048867,0.0016475,67108.0,67107.0,0.3282093]
[1729603049930,0.0016475,67108.0,67107.0,0.3562093]
[1729603050149,0.0016475,67108.0,67107.0,0.40725552]
[1729603050355,0.0016475,67108.0,67107.0,0.3562093]
[1729603050561,0.0016475,67108.0,67107.0,0.50516845]
[1729603050773,0.0016475,67108.0,67107.0,0.49116845]
[1729603050974,0.0016475,67108.0,67107.0,0.60516845]
[1729603051180,0.0016475,67108.0,67107.0,0.65621467]
[1729603051406,0.0016475,67108.0,67107.0,0.61716845]
[1729603051594,0.0016475,67108.0,67107.0,0.74731467]
[1729603051798,0.0016475,67108.0,67107.0,0.73331467]
[1729603052005,0.0016475,67108.0,67107.0,0.81061467]
[1729603052205,0.0016475,67108.0,67107.0,0.82461467]
[1729603052427,0.0192798,67118.0,67117.0,0.153993]
[1729603052637,0.0046049,67118.0,67117.0,1.23879944]
[1729603052846,0.0046049,67118.0,67117.0,1.28984566]
[1729603053054,0.0046049,67118.0,67117.0,1.46111924]
[1729603053267,0.0046049,67118.0,67117.0,1.41230722]
[1729603053694,9e-05,67125.0,67124.0,0.453978]
[1729603053999,9e-05,67125.0,67124.0,0.77621073]
[1729603054215,9e-05,67125.0,67124.0,0.82232841]
[1729603054658,0.2237587,67153.0,67149.0,0.171922]
[1729603054868,0.2237587,67153.0,67149.0,0.32311467]
[1729603055012,0.001688,67157.0,67149.0,0.398731]
[1729603055240,0.27127358,67150.0,67149.0,0.15119267]
[1729603055597,0.34797358,67150.0,67149.0,0.15119267]
[1729603056028,0.34797358,67150.0,67126.0,0.005]
[1729603056239,0.32562,67150.0,67149.0,0.014]
[1729603056471,0.446825,67141.0,67133.0,0.14895915]
[1729603056684,0.297876,67142.0,67139.0,0.2237587]
[1729603056890,0.14894,67141.0,67140.0,0.14895915]
[1729603057867,0.32021358,67141.0,67140.0,0.14895915]
[1729603059818,0.32021358,67141.0,67140.0,0.15195915]
[1729603060189,0.32021358,67141.0,67140.0,0.16495915]
[1729603060395,0.17127358,67141.0,67140.0,0.16495915]
[1729603060602,0.32021358,67141.0,67140.0,0.16495915]
[1729603060803,0.46914058,67145.0,67140.0,0.15195915]
[1729603061024,0.32021358,67141.0,67140.0,0.15595915]
[1729603061227,0.17127358,67141.0,67140.0,0.15595915]
[1729603061435,0.32021358,67141.0,67140.0,0.15595915]
[1729603061725,0.57848716,67141.0,67140.0,0.007]
[1729603061960,0.58848716,67141.0,67140.0,0.007]
[1729603062219,0.1,67150.0,67143.0,0.148935]
[1729603062441,0.148925,67148.0,67141.0,0.023]
[1729603062656,0.27127358,67150.0,67142.0,0.148937]
[1729603063083,0.27127358,67150.0,67145.0,0.14893]
[1729603063294,0.27127358,67150.0,67144.0,0.148933]
[1729603063534,0.27127358,67150.0,67145.0,0.023]
[1729603063744,0.27127358,67150.0,67144.0,0.023]
[1729603063745,0.1,67150.0,67144.0,0.023]
[1729603063948,0.1,67150.0,67146.0,0.023]
[1729603064164,0.27127358,67150.0,67146.0,0.023]
[1729603064384,0.27127358,67150.0,67142.0,0.014]
[1729603064385,0.56911558,67150.0,67142.0,0.014]
[1729603064587,0.17127358,67143.0,67142.0,0.037]
[1729603065258,0.17127358,67143.0,67142.0,0.014]
[1729603065691,0.17127358,67143.0,67140.0,0.15119327]
[1729603065854,0.22484,67141.0,67140.0,0.14895915]
[1729603066058,0.148946,67138.0,67137.0,0.02331206]
[1729603066747,0.005,67139.0,67129.0,0.2237587]
[1729603066960,0.148958,67133.0,67130.0,0.14895915]
[1729603067107,0.32023558,67131.0,67130.0,0.14895915]
[1729603067879,0.17127358,67131.0,67130.0,0.14895915]
[1729603068308,0.297908,67135.0,67130.0,0.14895915]
[1729603068525,0.148962,67131.0,67130.0,0.14895915]
[1729603069173,0.148962,67131.0,67130.0,0.15695915]
[1729603069411,0.148962,67131.0,67130.0,0.14895915]
[1729603069590,0.148962,67131.0,67130.0,0.15695915]
[1729603069813,0.148962,67131.0,67130.0,0.16095915]
[1729603070012,0.148962,67131.0,67130.0,0.15295915]
[1729603070656,0.148961,67132.0,67130.0,0.15295915]
[1729603070877,0.148962,67131.0,67130.0,0.15695915]
[1729603071932,0.148962,67131.0,67130.0,0.15295915]
[1729603072282,0.148962,67131.0,67130.0,0.15195915]
[1729603072479,0.148962,67131.0,67130.0,0.14895915]
[1729603072692,0.148962,67131.0,67130.0,0.15295915]
[1729603072895,0.148962,67131.0,67130.0,0.15595915]
[1729603073112,0.148962,67131.0,67130.0,0.15195915]
[1729603073656,0.148962,67131.0,67130.0,0.15595915]
[1729603073851,0.14896,67132.0,67130.0,0.15595915]
[1729603074260,0.14896,67132.0,67131.0,0.00223429]
[1729603074701,0.25907237,67133.0,67130.0,0.15595915]
[1729603074917,0.148962,67131.0,67130.0,0.15595915]
[1729603075145,0.148962,67131.0,67130.0,0.15295915]
[1729603075370,0.148962,67131.0,67130.0,0.14895915]
[1729603075554,0.148962,67131.0,67130.0,0.15295915]
[1729603075903,0.148962,67131.0,67130.0,0.15595915]
[1729603076113,0.148962,67131.0,67130.0,0.15195915]
[1729603076310,0.148962,67131.0,67130.0,0.15295915]
[1729603076541,0.297921,67132.0,67130.0,0.15295915]
[1729603076870,0.14896,67132.0,67130.0,0.15595915]
[1729603077832,0.40803037,67133.0,67130.0,0.15595915]
[1729603078029,0.25907237,67133.0,67130.0,0.15595915]
[1729603078279,0.40803237,67133.0,67130.0,0.15295915]
[1729603078481,0.14896,67132.0,67130.0,0.15195915]
[1729603078892,0.14896,67132.0,67131.0,0.00223429]
[1729603080137,0.40803237,67133.0,67131.0,0.00523429]
[1729603080337,0.14896,67132.0,67131.0,0.00523429]
[1729603080537,0.25907237,67133.0,67131.0,0.00523429]
[1729603080751,0.3079,67137.0,67132.0,0.14895915]
[1729603080752,0.41802237,67137.0,67132.0,0.14895915]
[1729603080900,0.41302137,67137.0,67132.0,0.14895915]
[1729603081120,0.40803037,67133.0,67132.0,0.14895915]
[1729603081531,0.25907237,67133.0,67132.0,0.14895915]
[1729603082582,0.005,67137.0,67132.0,0.29791715]
[1729603082840,0.005,67137.0,67133.0,0.05988552]
[1729603083007,0.005,67137.0,67134.0,0.14895915]
[1729603083228,0.25907237,67138.0,67134.0,0.14895915]
[1729603083445,0.25907237,67142.0,67135.0,0.297907]
[1729603083651,0.40801037,67142.0,67136.0,0.29791015]
[1729603084014,0.29788,67141.0,67136.0,0.14895915]
[1729603084266,0.25907237,67142.0,67136.0,0.14895915]
[1729603084448,0.25907237,67142.0,67136.0,0.29790915]
[1729603084652,0.25907237,67142.0,67136.0,0.14895915]
[1729603084805,0.14894,67141.0,67136.0,0.14895915]
[1729603085026,0.25907237,67142.0,67136.0,0.14895915]
[1729603085027,0.40801037,67142.0,67136.0,0.14895915]
[1729603085248,0.000824,67143.0,67139.0,0.5216457]
[1729603085467,0.000824,67143.0,67142.0,0.148938]
[1729603085672,0.000824,67143.0,67142.0,0.14895915]
[1729603085932,0.25989637,67143.0,67142.0,0.14895915]
[1729603086815,0.25989637,67143.0,67142.0,0.15195915]
[1729603087440,0.000824,67143.0,67142.0,0.14895915]
[1729603087827,0.446814,67142.0,67136.0,0.02331387]
[1729603088067,0.25907237,67139.0,67137.0,0.14895915]
[1729603088272,0.153949,67137.0,67136.0,0.02331387]
[1729603088404,0.155949,67137.0,67136.0,0.02331387]
[1729603088621,0.165949,67137.0,67136.0,0.02331387]
[1729603088838,0.41256444,67137.0,67136.0,0.02331387]
[1729603089262,0.41256444,67137.0,67136.0,0.02931387]
[1729603089494,0.005,67129.0,67126.0,0.00223461]
[1729603089709,0.40804337,67127.0,67126.0,0.15119376]
[1729603090351,0.31960886,67127.0,67126.0,0.15119376]
[1729603090761,0.31960886,67127.0,67126.0,0.15919376]
[1729603092617,0.31960886,67127.0,67126.0,0.16719376]
[1729603097171,0.148971,67127.0,67126.0,0.16719376]
[1729603097386,0.000824,67132.0,67126.0,0.16719376]
[1729603097600,0.000824,67132.0,67130.0,0.148963]
[1729603097819,0.000824,67132.0,67131.0,0.29792115]
[1729603098041,0.000824,67132.0,67131.0,0.41212473]
[1729603098947,0.000824,67132.0,67131.0,0.32092115]
[1729603099160,0.000824,67132.0,67131.0,0.17195915]
[1729603099383,0.46938386,67132.0,67126.0,0.01023461]
[1729603099642,0.148969,67128.0,67127.0,0.14895915]
[1729603099881,0.148971,67127.0,67126.0,0.15119376]
[1729603100115,0.17063786,67127.0,67126.0,0.14895915]
[1729603100584,0.148964,67130.0,67126.0,0.20042106]
[1729603100823,0.17063786,67131.0,67127.0,0.14895915]
[1729603101028,0.31960186,67131.0,67127.0,0.14895915]
[1729603101184,0.17063786,67131.0,67127.0,0.14895915]
[1729603101466,0.148965,67130.0,67127.0,0.15119366]
[1729603101679,0.000824,67132.0,67127.0,0.15119366]
[1729603101822,0.17063786,67131.0,67127.0,0.15119366]
[1729603102377,0.17063786,67131.0,67128.0,0.148968]
[1729603102583,0.17063786,67131.0,67129.0,0.14895915]
[1729603105289,0.17146386,67131.0,67129.0,0.14895915]
[1729603105526,0.17146386,67131.0,67129.0,0.15395915]
[1729603105944,0.17146386,67131.0,67129.0,0.15895915]
[1729603106155,0.148964,67130.0,67129.0,0.15895915]
[1729603106372,0.32042586,67131.0,67129.0,0.15895915]
[1729603106821,0.17146386,67131.0,67129.0,0.16119358]
[1729603107032,0.17146386,67131.0,67129.0,0.15619358]
[1729603108507,0.000826,67131.0,67129.0,0.16119358]
[1729603108761,0.000826,67131.0,67130.0,0.148964]
[1729603108928,0.000826,67131.0,67130.0,0.29792315]
[1729603110036,0.000826,67131.0,67130.0,0.30192315]
[1729603110269,0.000826,67131.0,67130.0,0.30592315]
[1729603111329,0.000826,67131.0,67130.0,0.15695915]
[1729603111782,0.32042586,67131.0,67130.0,0.15695915]
[1729603113075,0.40532586,67131.0,67130.0,0.008]
[1729603115775,0.40532586,67131.0,67130.0,0.004]